[Event "Titled Tuesday Blitz April 25 Late 2023"]
[White "Tworuszka, Michal"]
[Black "Holt, Conrad"]
[WhiteFideId "1117858"]
[BlackFideId "2034387"]
[WhiteElo "2260"]
[BlackElo "2592"]
[Result "1/2-1/2"]
[Round "01"]
[TimeControl "180+2"]
[Date "2023.04.25"]
[WhiteClock "0:00:05"]
[BlackClock "0:00:04"]

1. d4 {[%clk 0:02:58]}  d5 {[%clk 0:02:57]} 2. c4 {[%clk 0:02:58]}  c6 {[%clk 0:02:57]} 3. Nf3 {[%clk 0:02:58]}  Nf6 {[%clk 0:02:56]} 4. Nc3 {[%clk 0:02:58]}  dxc4 {[%clk 0:02:54]} 5. a4 {[%clk 0:02:57]}  e6 {[%clk 0:02:51]} 6. e3 {[%clk 0:02:55]}  c5 {[%clk 0:02:50]} 7. Bxc4 {[%clk 0:02:54]}  cxd4 {[%clk 0:02:50]} 8. Qxd4 {[%clk 0:02:55]}  Bd7 {[%clk 0:02:43]} 9. Ne5 {[%clk 0:02:32]}  Nc6 {[%clk 0:02:42]} 10. Nxc6 {[%clk 0:02:32]}  Bxc6 {[%clk 0:02:42]} 11. Qxd8+ {[%clk 0:02:30]}  Rxd8 {[%clk 0:02:39]} 12. O-O {[%clk 0:02:30]}  Bb4 {[%clk 0:02:30]} 13. Nb5 {[%clk 0:02:29]}  O-O {[%clk 0:01:50]} 14. Nxa7 {[%clk 0:02:27]}  Bd5 {[%clk 0:01:51]} 15. b3 {[%clk 0:02:23]}  Bxc4 {[%clk 0:01:37]} 16. bxc4 {[%clk 0:02:23]}  Ra8 {[%clk 0:01:38]} 17. Nb5 {[%clk 0:02:22]}  Rfc8 {[%clk 0:01:37]} 18. Ba3 {[%clk 0:01:52]}  Rxc4 {[%clk 0:01:36]} 19. Bxb4 {[%clk 0:01:51]}  Rxb4 {[%clk 0:01:37]} 20. Rfb1 {[%clk 0:01:27]}  Raxa4 {[%clk 0:01:34]} 21. Nd6 {[%clk 0:01:18]}  Kf8 {[%clk 0:01:19]} 22. g3 {[%clk 0:01:09]}  Ke7 {[%clk 0:01:13]} 23. Nc8+ {[%clk 0:01:08]}  Kd7 {[%clk 0:01:11]} 24. Nb6+ {[%clk 0:01:02]}  Rxb6 {[%clk 0:01:11]} 25. Rd1+ {[%clk 0:01:00]}  Kc7 {[%clk 0:01:07]} 26. Rxa4 {[%clk 0:01:00]}  Rb2 {[%clk 0:01:04]} 27. Rc4+ {[%clk 0:00:56]}  Kb6 {[%clk 0:01:01]} 28. Rd8 {[%clk 0:00:53]}  Kb5 {[%clk 0:00:57]} 29. Rc7 {[%clk 0:00:51]}  b6 {[%clk 0:00:51]} 30. Rxf7 {[%clk 0:00:51]}  Kc4 {[%clk 0:00:41]} 31. Rd4+ {[%clk 0:00:45]}  Kc3 {[%clk 0:00:37]} 32. Rxg7 {[%clk 0:00:45]}  b5 {[%clk 0:00:35]} 33. Re7 {[%clk 0:00:42]}  Nd5 {[%clk 0:00:11]} 34. Rxe6 {[%clk 0:00:42]}  Nb4 {[%clk 0:00:11]} 35. g4 {[%clk 0:00:35]}  Nc2 {[%clk 0:00:10]} 36. Rc6+ {[%clk 0:00:35]}  Kb3 {[%clk 0:00:10]} 37. Rd3+ {[%clk 0:00:32]}  Ka2 {[%clk 0:00:10]} 38. g5 {[%clk 0:00:24]}  Nb4 {[%clk 0:00:07]} 39. Rcd6 {[%clk 0:00:18]}  Nxd3 {[%clk 0:00:07]} 40. Rxd3 {[%clk 0:00:18]}  b4 {[%clk 0:00:06]} 41. h4 {[%clk 0:00:18]}  b3 {[%clk 0:00:05]} 42. Kg2 {[%clk 0:00:17]}  Rc2 {[%clk 0:00:05]} 43. Rd7 {[%clk 0:00:16]}  b2 {[%clk 0:00:05]} 44. Ra7+ {[%clk 0:00:16]}  Kb3 {[%clk 0:00:05]} 45. Rb7+ {[%clk 0:00:17]}  Ka2 {[%clk 0:00:06]} 46. Kg3 {[%clk 0:00:16]}  Rc3 {[%clk 0:00:05]} 47. Rxb2+ {[%clk 0:00:12]}  Kxb2 {[%clk 0:00:06]} 48. h5 {[%clk 0:00:13]}  Rc6 {[%clk 0:00:03]} 49. f4 {[%clk 0:00:11]}  Kc3 {[%clk 0:00:03]} 50. f5 {[%clk 0:00:11]}  Kc4 {[%clk 0:00:02]} 51. Kf4 {[%clk 0:00:10]}  Kd5 {[%clk 0:00:03]} 52. e4+ {[%clk 0:00:10]}  Kd6 {[%clk 0:00:03]} 53. e5+ {[%clk 0:00:09]}  Ke7 {[%clk 0:00:03]} 54. g6 {[%clk 0:00:08]}  h6 {[%clk 0:00:03]} 55. f6+ {[%clk 0:00:08]}  Ke6 {[%clk 0:00:03]} 56. g7 {[%clk 0:00:07]}  Rc4+ {[%clk 0:00:03]} 57. Kf3 {[%clk 0:00:07]}  Rc8 {[%clk 0:00:03]} 58. Kf4 {[%clk 0:00:07]}  Ra8 {[%clk 0:00:03]} 59. Kf3 {[%clk 0:00:05]}  Kf7 {[%clk 0:00:03]} 60. Kf4 {[%clk 0:00:05]}  Ra6 {[%clk 0:00:03]} 61. Kf5 {[%clk 0:00:05]}  Ra5 {[%clk 0:00:04]} 62. Kf4 {[%clk 0:00:04]}  Ra8 {[%clk 0:00:04]} 63. Kf5 {[%clk 0:00:05]}  Ra5 {[%clk 0:00:04]} 64. Kf4 {[%clk 0:00:05]}  Ra4+ {[%clk 0:00:04]} 65. Kf5 {[%clk 0:00:05]}  Ra5 {[%clk 0:00:04]} 1/2-1/2


[Site "https://www.chess.com"]

[Event "Titled Tuesday Blitz April 25 Late 2023"]
[White "Melikhov, Evgeny V."]
[Black "Rustemov, Alexander"]
[WhiteFideId "4122046"]
[BlackFideId "4119002"]
[WhiteElo "2158"]
[BlackElo "2525"]
[Result "0-1"]
[Round "01"]
[TimeControl "180+2"]
[Date "2023.04.25"]
[WhiteClock "0:00:01"]
[BlackClock "0:00:16"]

1. d4 {[%clk 0:02:58]}  f5 {[%clk 0:02:58]} 2. e4 {[%clk 0:02:57]}  fxe4 {[%clk 0:02:57]} 3. Nc3 {[%clk 0:02:57]}  Nf6 {[%clk 0:02:57]} 4. Bg5 {[%clk 0:02:58]}  g6 {[%clk 0:02:54]} 5. Bxf6 {[%clk 0:02:33]}  exf6 {[%clk 0:02:54]} 6. Nxe4 {[%clk 0:02:33]}  Qe7 {[%clk 0:02:53]} 7. Qe2 {[%clk 0:02:31]}  f5 {[%clk 0:02:51]} 8. Nc3 {[%clk 0:02:21]}  Qxe2+ {[%clk 0:02:49]} 9. Bxe2 {[%clk 0:02:21]}  d6 {[%clk 0:02:42]} 10. Nf3 {[%clk 0:02:20]}  c6 {[%clk 0:02:34]} 11. O-O-O {[%clk 0:02:19]}  Nd7 {[%clk 0:02:21]} 12. h4 {[%clk 0:02:14]}  h6 {[%clk 0:02:19]} 13. d5 {[%clk 0:01:48]}  c5 {[%clk 0:02:17]} 14. Nd2 {[%clk 0:01:43]}  Nf6 {[%clk 0:02:10]} 15. Nc4 {[%clk 0:01:39]}  Bd7 {[%clk 0:02:08]} 16. a4 {[%clk 0:01:37]}  a6 {[%clk 0:01:52]} 17. a5 {[%clk 0:01:33]}  Kf7 {[%clk 0:01:46]} 18. f3 {[%clk 0:01:07]}  Re8 {[%clk 0:01:41]} 19. Bd3 {[%clk 0:01:05]}  h5 {[%clk 0:01:33]} 20. f4 {[%clk 0:00:51]}  Bb5 {[%clk 0:01:26]} 21. Nb6 {[%clk 0:00:39]}  Bxd3 {[%clk 0:01:22]} 22. Rxd3 {[%clk 0:00:39]}  Ne4 {[%clk 0:01:06]} 23. Nxe4 {[%clk 0:00:35]}  Rxe4 {[%clk 0:01:07]} 24. g3 {[%clk 0:00:34]}  Be7 {[%clk 0:00:54]} 25. b3 {[%clk 0:00:28]}  Bd8 {[%clk 0:00:51]} 26. Nc4 {[%clk 0:00:28]}  Bc7 {[%clk 0:00:44]} 27. Rf1 {[%clk 0:00:19]}  Rhe8 {[%clk 0:00:44]} 28. Rff3 {[%clk 0:00:19]}  Re1+ {[%clk 0:00:44]} 29. Kb2 {[%clk 0:00:17]}  R8e4 {[%clk 0:00:37]} 30. Rd2 {[%clk 0:00:14]}  Rg1 {[%clk 0:00:33]} 31. Rdd3 {[%clk 0:00:07]}  Ree1 {[%clk 0:00:33]} 32. Rde3 {[%clk 0:00:06]}  Rb1+ {[%clk 0:00:23]} 33. Kc3 {[%clk 0:00:06]}  Rbe1 {[%clk 0:00:19]} 34. Rxe1 {[%clk 0:00:05]}  Rxe1 {[%clk 0:00:19]} 35. Kd2 {[%clk 0:00:05]}  Re4 {[%clk 0:00:16]} 36. Re3 {[%clk 0:00:05]}  Rd4+ {[%clk 0:00:16]} 37. Kc3 {[%clk 0:00:04]}  Re4 {[%clk 0:00:15]} 38. Rxe4 {[%clk 0:00:03]}  fxe4 {[%clk 0:00:16]} 39. Kd2 {[%clk 0:00:03]}  Kf6 {[%clk 0:00:16]} 40. Ke3 {[%clk 0:00:03]}  Kf5 {[%clk 0:00:17]} 41. Nd2 {[%clk 0:00:04]}  Bxa5 {[%clk 0:00:17]} 42. Nxe4 {[%clk 0:00:04]}  Bc7 {[%clk 0:00:17]} 43. Nf2 {[%clk 0:00:04]}  b5 {[%clk 0:00:17]} 44. c4 {[%clk 0:00:02]}  bxc4 {[%clk 0:00:16]} 45. bxc4 {[%clk 0:00:03]}  a5 {[%clk 0:00:17]} 46. Nd3 {[%clk 0:00:02]}  Kg4 {[%clk 0:00:16]} 47. Kf2 {[%clk 0:00:01]}  a4 {[%clk 0:00:16]} 48. Nc1 {[%clk 0:00:01]}  a3 {[%clk 0:00:16]} 49. Na2 {[%clk 0:00:01]}  Ba5 {[%clk 0:00:16]} 0-1


[Site "https://www.chess.com"]

[Event "Titled Tuesday Blitz April 25 Late 2023"]
[White "Mazurkiewicz, Michal"]
[Black "Bitoon, Richard"]
[WhiteFideId "1124943"]
[BlackFideId "5201110"]
[WhiteElo "2054"]
[BlackElo "2374"]
[Result "1-0"]
[Round "01"]
[TimeControl "180+2"]
[Date "2023.04.25"]
[WhiteClock "0:00:06"]
[BlackClock "0:00:11"]

1. e4 {[%clk 0:03:00]}  e5 {[%clk 0:03:00]} 2. Nf3 {[%clk 0:03:00]}  Nc6 {[%clk 0:03:00]} 3. Bb5 {[%clk 0:03:00]}  a6 {[%clk 0:03:00]} 4. Bxc6 {[%clk 0:03:00]}  dxc6 {[%clk 0:03:01]} 5. O-O {[%clk 0:03:01]}  Bg4 {[%clk 0:03:02]} 6. h3 {[%clk 0:03:01]}  h5 {[%clk 0:03:02]} 7. d3 {[%clk 0:03:01]}  Qf6 {[%clk 0:03:03]} 8. Nbd2 {[%clk 0:03:02]}  Ne7 {[%clk 0:03:03]} 9. Re1 {[%clk 0:03:02]}  Ng6 {[%clk 0:03:03]} 10. d4 {[%clk 0:03:01]}  Nf4 {[%clk 0:03:03]} 11. dxe5 {[%clk 0:03:00]}  Qg6 {[%clk 0:03:04]} 12. Nh4 {[%clk 0:02:55]}  Bxd1 {[%clk 0:03:05]} 13. Nxg6 {[%clk 0:02:55]}  Nxg6 {[%clk 0:03:06]} 14. Rxd1 {[%clk 0:02:55]}  O-O-O {[%clk 0:03:06]} 15. Re1 {[%clk 0:02:48]}  Nxe5 {[%clk 0:03:06]} 16. f4 {[%clk 0:02:46]}  Bb4 {[%clk 0:03:03]} 17. fxe5 {[%clk 0:01:31]}  Bxd2 {[%clk 0:03:02]} 18. Bxd2 {[%clk 0:01:32]}  Rxd2 {[%clk 0:03:03]} 19. Rf1 {[%clk 0:01:33]}  Rxc2 {[%clk 0:01:38]} 20. Rxf7 {[%clk 0:01:31]}  Rc5 {[%clk 0:01:39]} 21. Re7 {[%clk 0:00:41]}  g5 {[%clk 0:01:27]} 22. Rf1 {[%clk 0:00:37]}  Kb8 {[%clk 0:01:19]} 23. Rff7 {[%clk 0:00:35]}  Rc8 {[%clk 0:01:17]} 24. Rg7 {[%clk 0:00:35]}  Rc1+ {[%clk 0:01:03]} 25. Kh2 {[%clk 0:00:33]}  Rc2 {[%clk 0:00:58]} 26. e6 {[%clk 0:00:15]}  Re2 {[%clk 0:00:46]} 27. Rd7 {[%clk 0:00:07]}  Rxe4 {[%clk 0:00:47]} 28. e7 {[%clk 0:00:07]}  b6 {[%clk 0:00:38]} 29. Rd8 {[%clk 0:00:06]}  Kb7 {[%clk 0:00:37]} 30. Rgg8 {[%clk 0:00:05]}  Rxe7 {[%clk 0:00:36]} 31. Rxc8 {[%clk 0:00:05]}  Re2 {[%clk 0:00:35]} 32. Rcf8 {[%clk 0:00:04]}  c5 {[%clk 0:00:34]} 33. Rxg5 {[%clk 0:00:05]}  Rxb2 {[%clk 0:00:35]} 34. Rxh5 {[%clk 0:00:05]}  c4 {[%clk 0:00:35]} 35. Rf7 {[%clk 0:00:05]}  Rxa2 {[%clk 0:00:30]} 36. Rhh7 {[%clk 0:00:06]}  b5 {[%clk 0:00:31]} 37. Rxc7+ {[%clk 0:00:06]}  Kb6 {[%clk 0:00:32]} 38. Rc8 {[%clk 0:00:06]}  Ka5 {[%clk 0:00:28]} 39. h4 {[%clk 0:00:06]}  Kb4 {[%clk 0:00:26]} 40. h5 {[%clk 0:00:06]}  Rd2 {[%clk 0:00:26]} 41. h6 {[%clk 0:00:06]}  Rd6 {[%clk 0:00:26]} 42. g4 {[%clk 0:00:06]}  c3 {[%clk 0:00:25]} 43. g5 {[%clk 0:00:06]}  Rg6 {[%clk 0:00:25]} 44. Rg7 {[%clk 0:00:06]}  Re6 {[%clk 0:00:26]} 45. h7 {[%clk 0:00:07]}  Re2+ {[%clk 0:00:27]} 46. Kg3 {[%clk 0:00:07]}  Re3+ {[%clk 0:00:27]} 47. Kf4 {[%clk 0:00:07]}  Rh3 {[%clk 0:00:27]} 48. h8=Q {[%clk 0:00:05]}  Rxh8 {[%clk 0:00:28]} 49. Rxh8 {[%clk 0:00:06]}  Kb3 {[%clk 0:00:29]} 50. Rc8 {[%clk 0:00:05]}  b4 {[%clk 0:00:30]} 51. Ra7 {[%clk 0:00:05]}  c2 {[%clk 0:00:28]} 52. Rxa6 {[%clk 0:00:05]}  Kb2 {[%clk 0:00:29]} 53. Rb6 {[%clk 0:00:05]}  b3 {[%clk 0:00:30]} 54. g6 {[%clk 0:00:06]}  Ka2 {[%clk 0:00:29]} 55. g7 {[%clk 0:00:05]}  Ka1 {[%clk 0:00:10]} 56. Rxb3 {[%clk 0:00:05]}  c1=Q+ {[%clk 0:00:10]} 57. Rxc1+ {[%clk 0:00:05]}  Ka2 {[%clk 0:00:11]} 58. Rb8 {[%clk 0:00:05]}  Ka3 {[%clk 0:00:11]} 59. Rc7 {[%clk 0:00:05]}  Ka2 {[%clk 0:00:11]} 60. Ra7# {[%clk 0:00:06]} 1-0


[Site "https://www.chess.com"]

[Event "Titled Tuesday Blitz April 25 Late 2023"]
[White "Golubev, Mikhail"]
[Black "Goltsev, Dmitry"]
[WhiteFideId "14100983"]
[BlackFideId "24176710"]
[WhiteElo "2374"]
[BlackElo "2336"]
[Result "1/2-1/2"]
[Round "01"]
[TimeControl "180+2"]
[Date "2023.04.25"]
[WhiteClock "0:00:04"]
[BlackClock "0:00:04"]

1. e4 {[%clk 0:03:00]}  e6 {[%clk 0:02:57]} 2. d4 {[%clk 0:03:00]}  d5 {[%clk 0:02:57]} 3. Nc3 {[%clk 0:03:00]}  c5 {[%clk 0:02:57]} 4. exd5 {[%clk 0:02:55]}  exd5 {[%clk 0:02:57]} 5. Nf3 {[%clk 0:02:54]}  Nf6 {[%clk 0:02:57]} 6. Bb5+ {[%clk 0:02:49]}  Nc6 {[%clk 0:02:57]} 7. O-O {[%clk 0:02:49]}  Be7 {[%clk 0:02:56]} 8. dxc5 {[%clk 0:02:49]}  Bxc5 {[%clk 0:02:57]} 9. Qe2+ {[%clk 0:02:43]}  Be6 {[%clk 0:02:57]} 10. Ng5 {[%clk 0:02:37]}  O-O {[%clk 0:02:54]} 11. Nxe6 {[%clk 0:02:34]}  fxe6 {[%clk 0:02:55]} 12. Bxc6 {[%clk 0:02:31]}  bxc6 {[%clk 0:02:54]} 13. Qxe6+ {[%clk 0:02:31]}  Kh8 {[%clk 0:02:54]} 14. Bg5 {[%clk 0:02:18]}  Rc8 {[%clk 0:02:45]} 15. Bh4 {[%clk 0:01:44]}  Qa5 {[%clk 0:02:34]} 16. Bxf6 {[%clk 0:01:39]}  gxf6 {[%clk 0:02:35]} 17. a3 {[%clk 0:01:28]}  Bd4 {[%clk 0:02:29]} 18. Nd1 {[%clk 0:01:05]}  Qd2 {[%clk 0:02:24]} 19. c3 {[%clk 0:01:00]}  Bb6 {[%clk 0:01:57]} 20. a4 {[%clk 0:00:33]}  Rce8 {[%clk 0:01:36]} 21. Qxc6 {[%clk 0:00:20]}  Re1 {[%clk 0:01:34]} 22. Ne3 {[%clk 0:00:17]}  Rxa1 {[%clk 0:00:50]} 23. Rxa1 {[%clk 0:00:18]}  Bxe3 {[%clk 0:00:47]} 24. fxe3 {[%clk 0:00:18]}  Qxe3+ {[%clk 0:00:48]} 25. Kh1 {[%clk 0:00:17]}  Qd2 {[%clk 0:00:47]} 26. Qd6 {[%clk 0:00:11]}  Kg7 {[%clk 0:00:43]} 27. Qg3+ {[%clk 0:00:07]}  Kh8 {[%clk 0:00:43]} 28. b4 {[%clk 0:00:07]}  Rg8 {[%clk 0:00:37]} 29. Qf3 {[%clk 0:00:06]}  Rg6 {[%clk 0:00:34]} 30. Rd1 {[%clk 0:00:06]}  Qc2 {[%clk 0:00:34]} 31. Qxd5 {[%clk 0:00:03]}  Rxg2 {[%clk 0:00:23]} 32. Qxg2 {[%clk 0:00:03]}  Qxd1+ {[%clk 0:00:22]} 33. Qg1 {[%clk 0:00:04]}  Qf3+ {[%clk 0:00:23]} 34. Qg2 {[%clk 0:00:05]}  Qxc3 {[%clk 0:00:22]} 35. Qa8+ {[%clk 0:00:04]}  Kg7 {[%clk 0:00:22]} 36. Qxa7+ {[%clk 0:00:05]}  Kg6 {[%clk 0:00:23]} 37. b5 {[%clk 0:00:05]}  Qc4 {[%clk 0:00:23]} 38. Kg1 {[%clk 0:00:05]}  h5 {[%clk 0:00:17]} 39. Qe3 {[%clk 0:00:03]}  Qxa4 {[%clk 0:00:15]} 40. Qd3+ {[%clk 0:00:03]}  Kg5 {[%clk 0:00:10]} 41. Qg3+ {[%clk 0:00:03]}  Kf5 {[%clk 0:00:07]} 42. Qf3+ {[%clk 0:00:02]}  Ke6 {[%clk 0:00:06]} 43. Qxh5 {[%clk 0:00:01]}  Qa1+ {[%clk 0:00:01]} 44. Kg2 {[%clk 0:00:02]}  Qb2+ {[%clk 0:00:02]} 45. Kg1 {[%clk 0:00:02]}  Qb1+ {[%clk 0:00:02]} 46. Kf2 {[%clk 0:00:02]}  Qb4 {[%clk 0:00:03]} 47. Qe2+ {[%clk 0:00:02]}  Kf7 {[%clk 0:00:03]} 48. Kg2 {[%clk 0:00:02]}  Qc5 {[%clk 0:00:03]} 49. Qf1 {[%clk 0:00:02]}  Qd5+ {[%clk 0:00:03]} 50. Kg1 {[%clk 0:00:02]}  Qc5+ {[%clk 0:00:03]} 51. Kg2 {[%clk 0:00:02]}  f5 {[%clk 0:00:02]} 52. Kh1 {[%clk 0:00:03]}  Qd5+ {[%clk 0:00:03]} 53. Kg1 {[%clk 0:00:03]}  Kf6 {[%clk 0:00:03]} 54. Qe2 {[%clk 0:00:02]}  Qc5+ {[%clk 0:00:04]} 55. Kf1 {[%clk 0:00:02]}  f4 {[%clk 0:00:04]} 56. Kg2 {[%clk 0:00:02]}  Kg5 {[%clk 0:00:04]} 57. Qe6 {[%clk 0:00:02]}  Qxb5 {[%clk 0:00:03]} 58. Qe7+ {[%clk 0:00:02]}  Kf5 {[%clk 0:00:03]} 59. Qf7+ {[%clk 0:00:02]}  Ke4 {[%clk 0:00:04]} 60. Qe6+ {[%clk 0:00:02]}  Kd4 {[%clk 0:00:03]} 61. Qd6+ {[%clk 0:00:02]}  Ke3 {[%clk 0:00:03]} 62. Qe6+ {[%clk 0:00:03]}  Kd2 {[%clk 0:00:03]} 63. Qd6+ {[%clk 0:00:03]}  Ke3 {[%clk 0:00:02]} 64. Qe6+ {[%clk 0:00:03]}  Kd4 {[%clk 0:00:02]} 65. Qd6+ {[%clk 0:00:04]}  Ke4 {[%clk 0:00:02]} 66. Qe6+ {[%clk 0:00:04]}  Qe5 {[%clk 0:00:02]} 67. Qxe5+ {[%clk 0:00:04]}  Kxe5 {[%clk 0:00:03]} 68. Kf3 {[%clk 0:00:04]}  Kf5 {[%clk 0:00:04]} 69. h4 {[%clk 0:00:04]}  Kg6 {[%clk 0:00:03]} 70. h5+ {[%clk 0:00:05]}  Kxh5 {[%clk 0:00:04]} 71. Kxf4 {[%clk 0:00:04]} 1/2-1/2


[Site "https://www.chess.com"]

[Event "Titled Tuesday Blitz April 25 Late 2023"]
[White "Papp, Petra"]
[Black "Pakleza, Zbigniew"]
[WhiteFideId "739049"]
[BlackFideId "1119290"]
[WhiteElo "2259"]
[BlackElo "2410"]
[Result "0-1"]
[Round "01"]
[TimeControl "180+2"]
[Date "2023.04.25"]
[WhiteClock "0:00:07"]
[BlackClock "0:00:06"]

1. e4 {[%clk 0:02:55]}  d6 {[%clk 0:02:59]} 2. d4 {[%clk 0:02:54]}  Nf6 {[%clk 0:03:00]} 3. Nc3 {[%clk 0:02:54]}  c6 {[%clk 0:03:01]} 4. f4 {[%clk 0:02:52]}  Qb6 {[%clk 0:03:01]} 5. Nf3 {[%clk 0:02:34]}  Bg4 {[%clk 0:03:00]} 6. Be2 {[%clk 0:02:34]}  Bxf3 {[%clk 0:02:59]} 7. Bxf3 {[%clk 0:02:31]}  e5 {[%clk 0:02:58]} 8. Ne2 {[%clk 0:02:23]}  Nbd7 {[%clk 0:02:57]} 9. O-O {[%clk 0:02:19]}  Be7 {[%clk 0:02:57]} 10. c3 {[%clk 0:02:15]}  O-O {[%clk 0:02:56]} 11. Qb3 {[%clk 0:02:10]}  Rfe8 {[%clk 0:02:53]} 12. Be3 {[%clk 0:01:54]}  Bf8 {[%clk 0:02:52]} 13. Qxb6 {[%clk 0:01:51]}  axb6 {[%clk 0:02:50]} 14. Ng3 {[%clk 0:01:48]}  b5 {[%clk 0:02:47]} 15. a3 {[%clk 0:01:46]}  exd4 {[%clk 0:02:35]} 16. Bxd4 {[%clk 0:01:42]}  g6 {[%clk 0:01:45]} 17. Rfd1 {[%clk 0:01:39]}  h5 {[%clk 0:01:35]} 18. Re1 {[%clk 0:01:16]}  Bh6 {[%clk 0:01:29]} 19. f5 {[%clk 0:01:09]}  Ne5 {[%clk 0:01:19]} 20. Rad1 {[%clk 0:01:08]}  Bf8 {[%clk 0:01:10]} 21. Ne2 {[%clk 0:01:00]}  g5 {[%clk 0:00:53]} 22. Bxe5 {[%clk 0:00:37]}  Rxe5 {[%clk 0:00:54]} 23. g3 {[%clk 0:00:25]}  Rae8 {[%clk 0:00:35]} 24. h4 {[%clk 0:00:15]}  g4 {[%clk 0:00:29]} 25. Bg2 {[%clk 0:00:14]}  Nxe4 {[%clk 0:00:26]} 26. Bxe4 {[%clk 0:00:13]}  Rxe4 {[%clk 0:00:27]} 27. Kf2 {[%clk 0:00:13]}  d5 {[%clk 0:00:21]} 28. Nf4 {[%clk 0:00:10]}  Rxe1 {[%clk 0:00:05]} 29. Rxe1 {[%clk 0:00:10]}  Bc5+ {[%clk 0:00:06]} 30. Kf1 {[%clk 0:00:09]}  Rxe1+ {[%clk 0:00:06]} 31. Kxe1 {[%clk 0:00:10]}  Bd6 {[%clk 0:00:06]} 32. Nxh5 {[%clk 0:00:09]}  Be5 {[%clk 0:00:07]} 33. Kf1 {[%clk 0:00:09]}  Kh7 {[%clk 0:00:07]} 34. Kf2 {[%clk 0:00:09]}  Kh6 {[%clk 0:00:07]} 35. Nf4 {[%clk 0:00:08]}  Bxf4 {[%clk 0:00:07]} 36. gxf4 {[%clk 0:00:09]}  Kh5 {[%clk 0:00:07]} 37. Kg3 {[%clk 0:00:09]}  c5 {[%clk 0:00:07]} 38. f6 {[%clk 0:00:05]}  d4 {[%clk 0:00:07]} 39. cxd4 {[%clk 0:00:05]}  cxd4 {[%clk 0:00:07]} 40. f5 {[%clk 0:00:06]}  d3 {[%clk 0:00:06]} 41. Kf2 {[%clk 0:00:06]}  g3+ {[%clk 0:00:05]} 42. Ke3 {[%clk 0:00:07]}  g2 {[%clk 0:00:06]} 0-1


[Site "https://www.chess.com"]

[Event "Titled Tuesday Blitz April 25 Late 2023"]
[White "Urbina Perez, Juan Antonio"]
[Black "Weetik, Vjacheslav"]
[WhiteFideId "2217368"]
[BlackFideId "4153472"]
[WhiteElo "2197"]
[BlackElo "2469"]
[Result "0-1"]
[Round "01"]
[TimeControl "180+2"]
[Date "2023.04.25"]
[WhiteClock "0:01:59"]
[BlackClock "0:00:15"]

1. d4 {[%clk 0:02:56]}  Nf6 {[%clk 0:02:59]} 2. Nf3 {[%clk 0:02:56]}  e6 {[%clk 0:02:59]} 3. c3 {[%clk 0:02:56]}  d5 {[%clk 0:02:56]} 4. Bf4 {[%clk 0:02:55]}  Bd6 {[%clk 0:02:57]} 5. Bg3 {[%clk 0:02:54]}  O-O {[%clk 0:02:57]} 6. e3 {[%clk 0:02:54]}  c5 {[%clk 0:02:57]} 7. Nbd2 {[%clk 0:02:53]}  Qc7 {[%clk 0:02:57]} 8. Bd3 {[%clk 0:02:53]}  Nbd7 {[%clk 0:02:57]} 9. Qe2 {[%clk 0:02:52]}  e5 {[%clk 0:02:50]} 10. dxe5 {[%clk 0:02:50]}  Nxe5 {[%clk 0:02:51]} 11. Bc2 {[%clk 0:02:48]}  Re8 {[%clk 0:02:42]} 12. Nxe5 {[%clk 0:02:47]}  Bxe5 {[%clk 0:02:42]} 13. Bxe5 {[%clk 0:02:45]}  Qxe5 {[%clk 0:02:37]} 14. Nf3 {[%clk 0:02:45]}  Qh5 {[%clk 0:02:34]} 15. O-O-O {[%clk 0:02:39]}  Bg4 {[%clk 0:02:08]} 16. h3 {[%clk 0:02:32]}  Bxf3 {[%clk 0:02:06]} 17. Qxf3 {[%clk 0:02:32]}  Qxf3 {[%clk 0:02:06]} 18. gxf3 {[%clk 0:02:33]}  Kf8 {[%clk 0:01:51]} 19. Bb3 {[%clk 0:02:32]}  Rad8 {[%clk 0:01:49]} 20. Rd2 {[%clk 0:02:33]}  Re5 {[%clk 0:01:17]} 21. f4 {[%clk 0:02:24]}  Rh5 {[%clk 0:01:14]} 22. Bd1 {[%clk 0:02:21]}  Rh4 {[%clk 0:01:11]} 23. Bf3 {[%clk 0:02:21]}  Ke7 {[%clk 0:01:08]} 24. Bg2 {[%clk 0:02:21]}  Ne4 {[%clk 0:00:54]} 25. Bxe4 {[%clk 0:02:16]}  dxe4 {[%clk 0:00:54]} 26. Rxd8 {[%clk 0:02:17]}  Kxd8 {[%clk 0:00:55]} 27. Rg1 {[%clk 0:02:17]}  g6 {[%clk 0:00:52]} 28. Rg3 {[%clk 0:02:17]}  Ke7 {[%clk 0:00:46]} 29. c4 {[%clk 0:02:16]}  f5 {[%clk 0:00:43]} 30. Kc2 {[%clk 0:02:15]}  Kf6 {[%clk 0:00:40]} 31. a3 {[%clk 0:02:11]}  h6 {[%clk 0:00:39]} 32. b4 {[%clk 0:02:12]}  b6 {[%clk 0:00:35]} 33. Kb3 {[%clk 0:02:10]}  g5 {[%clk 0:00:34]} 34. fxg5+ {[%clk 0:02:11]}  hxg5 {[%clk 0:00:35]} 35. Ka4 {[%clk 0:02:08]}  f4 {[%clk 0:00:34]} 36. exf4 {[%clk 0:02:07]}  gxf4 {[%clk 0:00:35]} 37. Rg8 {[%clk 0:02:04]}  Rxh3 {[%clk 0:00:32]} 38. Rf8+ {[%clk 0:02:03]}  Ke5 {[%clk 0:00:32]} 39. bxc5 {[%clk 0:02:02]}  bxc5 {[%clk 0:00:32]} 40. Kb5 {[%clk 0:02:03]}  Rh2 {[%clk 0:00:20]} 41. Kxc5 {[%clk 0:02:01]}  Rxf2 {[%clk 0:00:20]} 42. Re8+ {[%clk 0:02:02]}  Kf5 {[%clk 0:00:20]} 43. Rf8+ {[%clk 0:02:01]}  Kg4 {[%clk 0:00:20]} 44. Kd4 {[%clk 0:02:02]}  Kf3 {[%clk 0:00:17]} 45. c5 {[%clk 0:02:01]}  Rc2 {[%clk 0:00:17]} 46. Re8 {[%clk 0:01:59]}  e3 {[%clk 0:00:15]} 0-1


[Site "https://www.chess.com"]